[Event "Live Chess"]
[Site "Chess.com"]
[Date "2023.05.21"]
[Round "-"]
[White "Ferrarifan27"]
[Black "marcrob"]
[Result "1-0"]
[WhiteElo "2065"]
[BlackElo "1000"]
[TimeControl "300"]
[EndTime "23:24:42 PDT"]
[Termination "Ferrarifan27 won on time"]

1. e4 {[%clk 0:04:56.8]} 1... e5 {[%clk 0:04:58.9]} 2. Nf3 {[%clk 0:04:55.1]}
2... Nc6 {[%clk 0:04:57]} 3. Bb5 {[%clk 0:04:53.3]} 3... Nf6 {[%clk 0:04:54.3]}
4. O-O {[%clk 0:04:51.2]} 4... Be7 {[%clk 0:04:45.7]} 5. Re1 {[%clk 0:04:47.7]}
5... d6 {[%clk 0:04:34.7]} 6. d4 {[%clk 0:04:30.8]} 6... O-O {[%clk 0:04:13.7]}
7. Bxc6 {[%clk 0:04:23.4]} 7... bxc6 {[%clk 0:04:11.9]} 8. dxe5 {[%clk
0:04:22.8]} 8... dxe5 {[%clk 0:04:08.3]} 9. Qxd8 {[%clk 0:04:20.9]} 9... Rxd8
{[%clk 0:04:06.5]} 10. Nxe5 {[%clk 0:04:19]} 10... Bb7 {[%clk 0:03:45.6]} 11.
Nc3 {[%clk 0:04:13.1]} 11... Bd6 {[%clk 0:03:39]} 12. Nc4 {[%clk 0:04:07.7]}
12... Bb4 {[%clk 0:03:26.7]} 13. Bg5 {[%clk 0:04:00.1]} 13... Bxc3 {[%clk
0:03:23.5]} 14. bxc3 {[%clk 0:03:59.9]} 14... Re8 {[%clk 0:02:58.3]} 15. Bxf6
{[%clk 0:03:57.8]} 15... gxf6 {[%clk 0:02:58.2]} 16. Na5 {[%clk 0:03:56.6]}
16... Bc8 {[%clk 0:02:36.5]} 17. Nxc6 {[%clk 0:03:53.8]} 17... Bb7 {[%clk
0:02:33.7]} 18. Nd4 {[%clk 0:03:47.6]} 18... Bxe4 {[%clk 0:02:30.5]} 19. f3
{[%clk 0:03:46.8]} 19... Bg6 {[%clk 0:02:21.4]} 20. Kf2 {[%clk 0:03:42.1]} 20...
c5 {[%clk 0:02:15.7]} 21. Nb3 {[%clk 0:03:40.9]} 21... Bxc2 {[%clk 0:02:12.8]}
22. Nxc5 {[%clk 0:03:36.3]} 22... Rab8 {[%clk 0:01:58.6]} 23. Rxe8+ {[%clk
0:03:33.8]} 23... Rxe8 {[%clk 0:01:56.7]} 24. Rc1 {[%clk 0:03:30.6]} 24... Bf5
{[%clk 0:01:47.5]} 25. Nb3 {[%clk 0:03:24.4]} 25... Bd3 {[%clk 0:01:43.4]} 26.
Nd4 {[%clk 0:03:22.2]} 26... Ba6 {[%clk 0:01:28.2]} 27. c4 {[%clk 0:03:11.7]}
27... Bb7 {[%clk 0:01:16.1]} 28. c5 {[%clk 0:03:09.5]} 28... Rd8 {[%clk
0:01:10.5]} 29. c6 {[%clk 0:03:04]} 29... Bc8 {[%clk 0:01:06.6]} 30. Nb5 {[%clk
0:02:54.9]} 30... a6 {[%clk 0:00:59.7]} 31. Na7 {[%clk 0:02:52.9]} 31... Be6
{[%clk 0:00:49.1]} 32. c7 {[%clk 0:02:51]} 32... Ra8 {[%clk 0:00:42]} 33. c8=Q+
{[%clk 0:02:48.5]} 33... Bxc8 {[%clk 0:00:40]} 34. Rxc8+ {[%clk 0:02:46.9]}
34... Rxc8 {[%clk 0:00:37.4]} 35. Nxc8 {[%clk 0:02:46.8]} 35... Kg7 {[%clk
0:00:32.3]} 36. Ke3 {[%clk 0:02:44]} 36... Kg6 {[%clk 0:00:29.9]} 37. Nd6 {[%clk
0:02:40.2]} 37... f5 {[%clk 0:00:25.3]} 38. Ne8 {[%clk 0:02:38.2]} 38... Kg5
{[%clk 0:00:20.2]} 39. a4 {[%clk 0:02:35.5]} 39... a5 {[%clk 0:00:16.2]} 40. Nd6
{[%clk 0:02:32.4]} 40... f4+ {[%clk 0:00:13.6]} 41. Ke4 {[%clk 0:02:28.6]} 41...
f6 {[%clk 0:00:11.2]} 42. Nc4 {[%clk 0:02:26.3]} 42... f5+ {[%clk 0:00:08.5]}
43. Ke5 {[%clk 0:02:25.6]} 43... Kh4 {[%clk 0:00:04]} 44. Kxf4 {[%clk
0:02:24.3]} 1-0

[Event "Live Chess"]
[Site "Chess.com"]
[Date "2023.05.21"]
[Round "-"]
[White "Outspanner"]
[Black "Biranidun"]
[Result "0-1"]
[WhiteElo "1536"]
[BlackElo "2560"]
[TimeControl "300"]
[EndTime "23:24:51 PDT"]
[Termination "Biranidun won by checkmate"]

1. Nf3 {[%clk 0:04:55.6]} 1... Nf6 {[%clk 0:04:58.9]} 2. c4 {[%clk 0:04:53.8]}
2... g6 {[%clk 0:04:58.4]} 3. g3 {[%clk 0:04:53.2]} 3... Bg7 {[%clk 0:04:58.3]}
4. Bg2 {[%clk 0:04:52.6]} 4... O-O {[%clk 0:04:58.2]} 5. O-O {[%clk 0:04:51.6]}
5... d6 {[%clk 0:04:58.1]} 6. Nc3 {[%clk 0:04:50.4]} 6... e5 {[%clk 0:04:57.7]}
7. d3 {[%clk 0:04:47.9]} 7... Nc6 {[%clk 0:04:56.6]} 8. b3 {[%clk 0:04:47.6]}
8... e4 {[%clk 0:04:52.8]} 9. Nd2 {[%clk 0:04:37.1]} 9... e3 {[%clk 0:04:52]}
10. fxe3 {[%clk 0:04:33]} 10... Ng4 {[%clk 0:04:51.5]} 11. Ndb1 {[%clk
0:04:28.5]} 11... Re8 {[%clk 0:04:42.8]} 12. Rf3 {[%clk 0:04:26]} 12... h5
{[%clk 0:04:28]} 13. a3 {[%clk 0:04:24.1]} 13... a5 {[%clk 0:04:26.3]} 14. Ra2
{[%clk 0:04:23.3]} 14... h4 {[%clk 0:04:14.3]} 15. Ne4 {[%clk 0:04:19.4]} 15...
f5 {[%clk 0:04:11.7]} 16. Nf2 {[%clk 0:04:15.1]} 16... Nge5 {[%clk 0:04:10.1]}
17. Rf4 {[%clk 0:04:11.9]} 17... hxg3 {[%clk 0:04:08.3]} 18. hxg3 {[%clk
0:04:06.2]} 18... Qg5 {[%clk 0:04:02.4]} 19. Nh1 {[%clk 0:03:55.4]} 19... Ng4
{[%clk 0:03:57.1]} 20. Rxg4 {[%clk 0:03:27.3]} 20... Qxg4 {[%clk 0:03:55.1]} 21.
Nd2 {[%clk 0:03:26.2]} 21... Rxe3 {[%clk 0:03:44.4]} 22. Nf3 {[%clk 0:03:25.7]}
22... Re7 {[%clk 0:03:39.6]} 23. Nf2 {[%clk 0:03:25.3]} 23... Qh5 {[%clk
0:03:38]} 24. Bg5 {[%clk 0:03:13.2]} 24... Re8 {[%clk 0:03:36.7]} 25. Bh4 {[%clk
0:02:59]} 25... Nd4 {[%clk 0:03:34]} 26. Bf1 {[%clk 0:02:14.8]} 26... Nxf3+
{[%clk 0:03:29.8]} 27. exf3 {[%clk 0:02:12.9]} 27... g5 {[%clk 0:03:28.8]} 28.
Bxg5 {[%clk 0:01:43.9]} 28... Qxg5 {[%clk 0:03:28.7]} 29. Kg2 {[%clk 0:01:43.4]}
29... Be5 {[%clk 0:03:20.7]} 30. Nh1 {[%clk 0:01:34.8]} 30... f4 {[%clk
0:03:17.4]} 31. g4 {[%clk 0:01:30.7]} 31... Bd4 {[%clk 0:03:16.5]} 32. Re2
{[%clk 0:01:17.4]} 32... Bd7 {[%clk 0:03:15.3]} 33. Nf2 {[%clk 0:00:47.5]} 33...
Qh4 {[%clk 0:03:02.8]} 34. Nh1 {[%clk 0:00:36.1]} 34... Rxe2+ {[%clk 0:03:00.8]}
35. Qxe2 {[%clk 0:00:34.8]} 35... Re8 {[%clk 0:03:00.7]} 36. Qd2 {[%clk
0:00:31.3]} 36... Re3 {[%clk 0:02:58.4]} 37. Be2 {[%clk 0:00:24]} 37... Bc6
{[%clk 0:02:55.8]} 38. Bd1 {[%clk 0:00:22.1]} 38... Qxg4+ {[%clk 0:02:54.3]} 39.
Kf1 {[%clk 0:00:19.9]} 39... Bxf3 {[%clk 0:02:52.2]} 40. Bxf3 {[%clk 0:00:17.7]}
40... Qxf3+ {[%clk 0:02:50.8]} 41. Nf2 {[%clk 0:00:17]} 41... Rxd3 {[%clk
0:02:47.1]} 42. Qc2 {[%clk 0:00:12.1]} 42... Rd1+ {[%clk 0:02:45.7]} 43. Qxd1
{[%clk 0:00:10]} 43... Qxf2# {[%clk 0:02:45.2]} 0-1

[Event "Live Chess"]
[Site "Chess.com"]
[Date "2023.05.21"]
[Round "-"]
[White "jbooth"]
[Black "Driftboard"]
[Result "1-0"]
[WhiteElo "1681"]
[BlackElo "755"]
[TimeControl "300"]
[EndTime "23:24:58 PDT"]
[Termination "jbooth won by checkmate"]

1. e4 {[%clk 0:04:55.7]} 1... e5 {[%clk 0:04:59.3]} 2. Bc4 {[%clk 0:04:54]} 2...
Nc6 {[%clk 0:04:58.2]} 3. Nc3 {[%clk 0:04:51.1]} 3... Nf6 {[%clk 0:04:56.9]} 4.
d3 {[%clk 0:04:49.6]} 4... Bc5 {[%clk 0:04:56]} 5. a3 {[%clk 0:04:48.3]} 5...
O-O {[%clk 0:04:55.2]} 6. f4 {[%clk 0:04:46.7]} 6... exf4 {[%clk 0:04:53.6]} 7.
Bxf4 {[%clk 0:04:44.4]} 7... Bxg1 {[%clk 0:04:48.4]} 8. Rxg1 {[%clk 0:04:42.3]}
8... d6 {[%clk 0:04:47.6]} 9. Bg5 {[%clk 0:04:39.9]} 9... h6 {[%clk 0:04:45.8]}
10. Bh4 {[%clk 0:04:37.5]} 10... Qe7 {[%clk 0:04:38.6]} 11. Nd5 {[%clk
0:04:34.9]} 11... Qd8 {[%clk 0:04:30.8]} 12. Nxf6+ {[%clk 0:04:25.9]} 12... gxf6
{[%clk 0:04:28.9]} 13. Rf1 {[%clk 0:04:23]} 13... Kg7 {[%clk 0:04:26.3]} 14.
Bxf6+ {[%clk 0:04:15.5]} 14... Qxf6 {[%clk 0:04:22.1]} 15. Rxf6 {[%clk
0:04:13.3]} 15... Kxf6 {[%clk 0:04:21.7]} 16. Qf3+ {[%clk 0:04:09.3]} 16... Ke7
{[%clk 0:04:19.2]} 17. c3 {[%clk 0:04:07.2]} 17... Ne5 {[%clk 0:04:16.5]} 18.
Qh5 {[%clk 0:04:01.9]} 18... Nxc4 {[%clk 0:04:13.8]} 19. dxc4 {[%clk 0:04:00.7]}
19... Rh8 {[%clk 0:04:08.7]} 20. O-O-O {[%clk 0:03:53.2]} 20... c6 {[%clk
0:04:07.7]} 21. Rf1 {[%clk 0:03:48]} 21... Be6 {[%clk 0:04:03.3]} 22. b3 {[%clk
0:03:44.8]} 22... d5 {[%clk 0:03:54.3]} 23. cxd5 {[%clk 0:03:41.6]} 23... cxd5
{[%clk 0:03:52.9]} 24. exd5 {[%clk 0:03:40.2]} 24... Bd7 {[%clk 0:03:45.2]} 25.
Rxf7+ {[%clk 0:03:28]} 25... Kd6 {[%clk 0:03:42.4]} 26. Qg6+ {[%clk 0:03:24.2]}
26... Kxd5 {[%clk 0:03:39.7]} 27. Rxd7+ {[%clk 0:03:21.9]} 27... Ke5 {[%clk
0:03:35.8]} 28. Qd6+ {[%clk 0:03:15.9]} 28... Kf5 {[%clk 0:03:33.9]} 29. Rf7+
{[%clk 0:03:13.5]} 29... Ke4 {[%clk 0:03:32.3]} 30. Rf4+ {[%clk 0:03:09.6]}
30... Ke3 {[%clk 0:03:30.9]} 31. Qe5+ {[%clk 0:03:06.7]} 31... Kd3 {[%clk
0:03:29.7]} 32. Qd4+ {[%clk 0:03:04.2]} 32... Ke2 {[%clk 0:03:28.3]} 33. Rf2+
{[%clk 0:03:02.3]} 33... Ke1 {[%clk 0:03:23.5]} 34. Qe3# {[%clk 0:03:00.4]} 1-0

[Event "Live Chess"]
[Site "Chess.com"]
[Date "2023.05.21"]
[Round "-"]
[White "Goblinbasher"]
[Black "Supertromp"]
[Result "0-1"]
[WhiteElo "1239"]
[BlackElo "2142"]
[TimeControl "300"]
[EndTime "23:25:32 PDT"]
[Termination "Supertromp won by resignation"]

1. e4 {[%clk 0:04:56.9]} 1... c5 {[%clk 0:04:58.2]} 2. Nc3 {[%clk 0:04:54.9]}
2... g6 {[%clk 0:04:53.1]} 3. f4 {[%clk 0:04:51.3]} 3... Bg7 {[%clk 0:04:47.9]}
4. Nf3 {[%clk 0:04:48.6]} 4... Nc6 {[%clk 0:04:46.9]} 5. Bc4 {[%clk 0:04:46.2]}
5... e6 {[%clk 0:04:43.4]} 6. a3 {[%clk 0:04:42.7]} 6... Nge7 {[%clk 0:04:40.8]}
7. O-O {[%clk 0:04:38.5]} 7... O-O {[%clk 0:04:29.2]} 8. d3 {[%clk 0:04:33.2]}
8... d5 {[%clk 0:04:27.7]} 9. exd5 {[%clk 0:04:23.6]} 9... exd5 {[%clk
0:04:02.2]} 10. Ba2 {[%clk 0:04:09.1]} 10... Bg4 {[%clk 0:03:53.8]} 11. Qe1
{[%clk 0:03:46.5]} 11... Bxf3 {[%clk 0:03:50.7]} 12. Rxf3 {[%clk 0:03:42.8]}
12... Nd4 {[%clk 0:03:49.7]} 13. Rf2 {[%clk 0:03:33]} 13... Ndf5 {[%clk
0:03:49.1]} 14. Rf1 {[%clk 0:03:17.9]} 14... Bd4+ {[%clk 0:03:36.3]} 15. Kh1
{[%clk 0:03:14.3]} 15... h5 {[%clk 0:03:30.8]} 16. Ne2 {[%clk 0:03:05.3]} 16...
Be3 {[%clk 0:03:19.4]} 17. Ng3 {[%clk 0:02:56.7]} 17... d4 {[%clk 0:03:08.5]}
18. Bxe3 {[%clk 0:02:51.8]} 18... Nxe3 {[%clk 0:03:05.8]} 19. Rf2 {[%clk
0:02:41.5]} 19... N7f5 {[%clk 0:02:58.8]} 20. Nxf5 {[%clk 0:02:33.5]} 20... Nxf5
{[%clk 0:02:57.3]} 21. Bc4 {[%clk 0:02:21.2]} 21... Re8 {[%clk 0:02:38.5]} 22.
Qd2 {[%clk 0:02:10.5]} 22... Qh4 {[%clk 0:02:36.8]} 23. Bd5 {[%clk 0:01:56.8]}
23... Re3 {[%clk 0:01:51.6]} 24. Re1 {[%clk 0:01:50.6]} 24... Rae8 {[%clk
0:01:48.8]} 25. Rxe3 {[%clk 0:01:44.3]} 25... dxe3 {[%clk 0:01:48.7]} 26. Qe2
{[%clk 0:00:44.4]} 26... Qxf2 {[%clk 0:01:45.9]} 0-1

[Event "Live Chess"]
[Site "Chess.com"]
[Date "2023.05.21"]
[Round "-"]
[White "Rusty_Bridges"]
[Black "elephantgerrald"]
[Result "0-1"]
[WhiteElo "1487"]
[BlackElo "471"]
[TimeControl "300"]
[EndTime "23:25:51 PDT"]
[Termination "elephantgerrald won by checkmate"]

1. e4 {[%clk 0:04:56.6]} 1... e5 {[%clk 0:04:58.4]} 2. f4 {[%clk 0:04:54.8]}
2... exf4 {[%clk 0:04:56.5]} 3. Nf3 {[%clk 0:04:53]} 3... Nf6 {[%clk 0:04:54.9]}
4. e5 {[%clk 0:04:51]} 4... Qe7 {[%clk 0:04:53.1]} 5. d4 {[%clk 0:04:49.1]} 5...
d6 {[%clk 0:04:50.9]} 6. Bxf4 {[%clk 0:04:46.6]} 6... dxe5 {[%clk 0:04:49.3]} 7.
Nxe5 {[%clk 0:04:38.3]} 7... Nbd7 {[%clk 0:04:44.1]} 8. c3 {[%clk 0:04:30.3]}
8... Nxe5 {[%clk 0:04:42]} 9. Bxe5 {[%clk 0:04:28.4]} 9... Nd5 {[%clk
0:04:23.1]} 10. Be2 {[%clk 0:04:17.7]} 10... Ne3 {[%clk 0:04:19.3]} 11. Qa4+
{[%clk 0:04:10.4]} 11... c6 {[%clk 0:04:14.2]} 12. Rg1 {[%clk 0:03:50.5]} 12...
b5 {[%clk 0:04:09.4]} 13. Qa5 {[%clk 0:03:31.8]} 13... Nc2+ {[%clk 0:04:05.3]}
14. Kd1 {[%clk 0:03:28.6]} 14... Nxa1 {[%clk 0:04:03.3]} 15. Re1 {[%clk
0:03:20.1]} 15... Bf5 {[%clk 0:03:52.8]} 16. Bxb5 {[%clk 0:03:13.9]} 16... cxb5
{[%clk 0:03:44.7]} 17. Bg3 {[%clk 0:03:02.2]} 17... Qxe1+ {[%clk 0:03:35.2]} 18.
Kxe1 {[%clk 0:03:00.1]} 18... Bxb1 {[%clk 0:03:33.7]} 19. Qxb5+ {[%clk
0:02:55.1]} 19... Ke7 {[%clk 0:03:27.4]} 20. Qb7+ {[%clk 0:02:50.5]} 20... Kf6
{[%clk 0:03:25.3]} 21. Qxa8 {[%clk 0:02:49.3]} 21... Nc2+ {[%clk 0:03:23.4]} 22.
Kd2 {[%clk 0:02:38.5]} 22... Nb4 {[%clk 0:03:15]} 23. cxb4 {[%clk 0:02:13.3]}
23... Bxb4+ {[%clk 0:03:13]} 24. Kc1 {[%clk 0:02:10.6]} 24... Rxa8 {[%clk
0:03:09.9]} 25. Kxb1 {[%clk 0:02:09.4]} 25... Re8 {[%clk 0:03:04.2]} 26. Kc2
{[%clk 0:02:06.8]} 26... Be1 {[%clk 0:02:56.7]} 27. Be5+ {[%clk 0:02:03.6]}
27... Kg6 {[%clk 0:02:50.4]} 28. Kd1 {[%clk 0:02:02.8]} 28... Ba5 {[%clk
0:02:40.8]} 29. a3 {[%clk 0:01:57.4]} 29... f6 {[%clk 0:02:39.2]} 30. Bf4 {[%clk
0:01:52.1]} 30... Re1+ {[%clk 0:02:36.7]} 31. Kc2 {[%clk 0:01:51]} 31... Re2+
{[%clk 0:02:31.9]} 32. Kb3 {[%clk 0:01:49.8]} 32... Rxg2 {[%clk 0:02:29.6]} 33.
d5 {[%clk 0:01:48.5]} 33... Kf7 {[%clk 0:02:25.5]} 34. d6 {[%clk 0:01:40.9]}
34... Ke8 {[%clk 0:02:23.7]} 35. Ka4 {[%clk 0:01:38.6]} 35... Bb6 {[%clk
0:02:21.6]} 36. b4 {[%clk 0:01:37.7]} 36... Rg4 {[%clk 0:02:17]} 37. Bg3 {[%clk
0:01:35.4]} 37... Kd7 {[%clk 0:02:11.8]} 38. Kb5 {[%clk 0:01:34.4]} 38... Rg5+
{[%clk 0:02:01.5]} 39. Kc4 {[%clk 0:01:30.8]} 39... Rg4+ {[%clk 0:01:51.7]} 40.
Kb5 {[%clk 0:01:28.4]} 40... h5 {[%clk 0:01:43.7]} 41. a4 {[%clk 0:01:26.6]}
41... h4 {[%clk 0:01:32.3]} 42. a5 {[%clk 0:01:24.9]} 42... Rg5+ {[%clk
0:01:25.7]} 43. Kc4 {[%clk 0:01:20.3]} 43... hxg3 {[%clk 0:01:21.5]} 44. axb6
{[%clk 0:01:18.7]} 44... axb6 {[%clk 0:01:19.7]} 45. hxg3 {[%clk 0:01:14.8]}
45... Rxg3 {[%clk 0:01:13.9]} 46. Kb5 {[%clk 0:01:14]} 46... f5 {[%clk
0:01:10.5]} 47. Kxb6 {[%clk 0:01:12.8]} 47... f4 {[%clk 0:01:08.3]} 48. b5
{[%clk 0:01:10.3]} 48... f3 {[%clk 0:01:07]} 49. Kb7 {[%clk 0:01:09.6]} 49... f2
{[%clk 0:01:05.4]} 50. b6 {[%clk 0:01:08.9]} 50... f1=Q {[%clk 0:01:01.8]} 51.
Kb8 {[%clk 0:01:08.1]} 51... Qf8+ {[%clk 0:00:57.4]} 52. Kb7 {[%clk 0:01:06.5]}
52... Qc8+ {[%clk 0:00:54.4]} 53. Ka7 {[%clk 0:01:05.1]} 53... Ra3# {[%clk
0:00:52.8]} 0-1

[Event "Live Chess"]
[Site "Chess.com"]
[Date "2023.05.21"]
[Round "-"]
[White "JohanKjeldahl"]
[Black "BJAW87"]
[Result "1-0"]
[WhiteElo "1876"]
[BlackElo "1432"]
[TimeControl "300"]
[EndTime "23:26:01 PDT"]
[Termination "JohanKjeldahl won by resignation"]

1. e4 {[%clk 0:04:55.7]} 1... c6 {[%clk 0:04:59.4]} 2. d4 {[%clk 0:04:53.9]}
2... d5 {[%clk 0:04:58.9]} 3. Nc3 {[%clk 0:04:52.8]} 3... dxe4 {[%clk
0:04:56.3]} 4. Nxe4 {[%clk 0:04:51.8]} 4... Bf5 {[%clk 0:04:55.5]} 5. Ng3 {[%clk
0:04:50.3]} 5... Bg6 {[%clk 0:04:54.8]} 6. Nf3 {[%clk 0:04:48.6]} 6... Nd7
{[%clk 0:04:53.3]} 7. h4 {[%clk 0:04:47.4]} 7... h5 {[%clk 0:04:51.7]} 8. Bd3
{[%clk 0:04:44.9]} 8... Bxd3 {[%clk 0:04:50.2]} 9. Qxd3 {[%clk 0:04:44]} 9...
Ngf6 {[%clk 0:04:48.7]} 10. Bf4 {[%clk 0:04:39.6]} 10... e6 {[%clk 0:04:43]} 11.
c3 {[%clk 0:04:38]} 11... Qb6 {[%clk 0:04:30.6]} 12. O-O-O {[%clk 0:04:36]}
12... Be7 {[%clk 0:04:25.3]} 13. Ne5 {[%clk 0:04:33.9]} 13... Nxe5 {[%clk
0:04:23]} 14. dxe5 {[%clk 0:04:30.5]} 14... Nd5 {[%clk 0:04:21.9]} 15. Bg5
{[%clk 0:04:23.6]} 15... Bxg5+ {[%clk 0:04:08.5]} 16. hxg5 {[%clk 0:04:21.4]}
16... O-O-O {[%clk 0:04:05.7]} 17. Ne4 {[%clk 0:04:19.4]} 17... Nf4 {[%clk
0:04:03.5]} 18. Nd6+ {[%clk 0:04:15.9]} 18... Kc7 {[%clk 0:03:30.8]} 19. Qf3
{[%clk 0:04:14]} 19... Nd5 {[%clk 0:03:23.7]} 20. Qxf7+ {[%clk 0:04:09.1]} 20...
Kb8 {[%clk 0:03:21.8]} 21. Qxe6 {[%clk 0:03:59.1]} 21... g6 {[%clk 0:03:16.7]}
22. Qxg6 {[%clk 0:03:54.9]} 22... Rdg8 {[%clk 0:03:15.6]} 23. Qc2 {[%clk
0:03:47.1]} 23... Rxg5 {[%clk 0:03:13]} 24. Nf7 {[%clk 0:03:44.8]} 24... Qd8
{[%clk 0:03:02]} 25. Nxd8 {[%clk 0:03:43.2]} 1-0

[Event "Live Chess"]
[Site "Chess.com"]
[Date "2023.05.21"]
[Round "-"]
[White "CeladonFish"]
[Black "Crowded_House"]
[Result "0-1"]
[WhiteElo "1096"]
[BlackElo "1689"]
[TimeControl "300"]
[EndTime "23:26:01 PDT"]
[Termination "Crowded_House won by resignation"]

1. d4 {[%clk 0:04:58.3]} 1... d5 {[%clk 0:04:56.4]} 2. c4 {[%clk 0:04:56.4]}
2... c6 {[%clk 0:04:53.5]} 3. Nc3 {[%clk 0:04:54.4]} 3... e6 {[%clk 0:04:50.6]}
4. Bf4 {[%clk 0:04:52.8]} 4... Bd6 {[%clk 0:04:48.3]} 5. Bxd6 {[%clk 0:04:50]}
5... Qxd6 {[%clk 0:04:46.9]} 6. Nf3 {[%clk 0:04:49]} 6... Nf6 {[%clk 0:04:42.5]}
7. cxd5 {[%clk 0:04:46.7]} 7... exd5 {[%clk 0:04:37.2]} 8. e3 {[%clk 0:04:44.8]}
8... O-O {[%clk 0:04:35.4]} 9. Bd3 {[%clk 0:04:42.9]} 9... Bg4 {[%clk
0:04:32.8]} 10. h3 {[%clk 0:04:39.8]} 10... Bh5 {[%clk 0:04:30.6]} 11. O-O
{[%clk 0:04:36.5]} 11... Nbd7 {[%clk 0:04:28.4]} 12. e4 {[%clk 0:04:33.5]} 12...
dxe4 {[%clk 0:04:23.1]} 13. Nxe4 {[%clk 0:04:31.7]} 13... Nxe4 {[%clk
0:04:21.2]} 14. Bxe4 {[%clk 0:04:31.1]} 14... Rfe8 {[%clk 0:04:16.7]} 15. Bc2
{[%clk 0:04:23.7]} 15... Qf6 {[%clk 0:04:04.6]} 16. Qd3 {[%clk 0:04:16.5]} 16...
Bg6 {[%clk 0:04:01]} 17. Qd2 {[%clk 0:04:07.4]} 17... Bxc2 {[%clk 0:03:59.7]}
18. Qxc2 {[%clk 0:04:06]} 18... Re7 {[%clk 0:03:54.2]} 19. h4 {[%clk 0:03:58.9]}
19... Rae8 {[%clk 0:03:51.1]} 20. Ng5 {[%clk 0:03:56.6]} 20... Qg6 {[%clk
0:03:41.6]} 21. f4 {[%clk 0:03:46]} 21... Qxc2 {[%clk 0:03:39.8]} 0-1

[Event "Live Chess"]
[Site "Chess.com"]
[Date "2023.05.21"]
[Round "-"]
[White "Geomorph"]
[Black "martynstanley"]
[Result "1-0"]
[WhiteElo "1256"]
[BlackElo "1009"]
[TimeControl "300"]
[EndTime "23:26:10 PDT"]
[Termination "Geomorph won by checkmate"]

1. e4 {[%clk 0:04:59.2]} 1... e6 {[%clk 0:04:59.3]} 2. Nf3 {[%clk 0:04:57.5]}
2... d5 {[%clk 0:04:58.4]} 3. Nc3 {[%clk 0:04:57]} 3... c5 {[%clk 0:04:57]} 4.
exd5 {[%clk 0:04:53.8]} 4... exd5 {[%clk 0:04:55.5]} 5. Bb5+ {[%clk 0:04:46.3]}
5... Nc6 {[%clk 0:04:54.5]} 6. Ne5 {[%clk 0:04:41.2]} 6... Ne7 {[%clk
0:04:51.2]} 7. Qe2 {[%clk 0:04:38.3]} 7... f6 {[%clk 0:04:48.9]} 8. Nxc6 {[%clk
0:04:34.6]} 8... bxc6 {[%clk 0:04:47]} 9. Bxc6+ {[%clk 0:04:33.7]} 9... Bd7
{[%clk 0:04:43.8]} 10. Bxa8 {[%clk 0:04:31.7]} 10... Qxa8 {[%clk 0:04:43]} 11.
O-O {[%clk 0:04:27.2]} 11... Qc6 {[%clk 0:04:41.4]} 12. d3 {[%clk 0:04:25.5]}
12... Bc8 {[%clk 0:04:38.7]} 13. Re1 {[%clk 0:04:20]} 13... Qd7 {[%clk
0:04:32.1]} 14. Bf4 {[%clk 0:04:17.2]} 14... Bb7 {[%clk 0:04:30.6]} 15. Rad1
{[%clk 0:04:12.5]} 15... g5 {[%clk 0:04:20.6]} 16. Bg3 {[%clk 0:04:10.7]} 16...
Kf7 {[%clk 0:04:17.2]} 17. a3 {[%clk 0:04:02.5]} 17... Qc6 {[%clk 0:04:15.8]}
18. Qf3 {[%clk 0:04:00.1]} 18... Ng6 {[%clk 0:04:11.9]} 19. Ne2 {[%clk
0:03:54.6]} 19... Ne5 {[%clk 0:04:10.3]} 20. Bxe5 {[%clk 0:03:52.7]} 20... Bd6
{[%clk 0:04:07.9]} 21. Qxf6+ {[%clk 0:03:49.8]} 21... Ke8 {[%clk 0:04:06.5]} 22.
Bxd6 {[%clk 0:03:44.8]} 22... Rf8 {[%clk 0:04:03.4]} 23. Nd4+ {[%clk 0:03:43.4]}
23... Kd7 {[%clk 0:03:58.3]} 24. Qe7+ {[%clk 0:03:39.9]} 24... Kc8 {[%clk
0:03:56.5]} 25. Nxc6 {[%clk 0:03:37.4]} 25... Bxc6 {[%clk 0:03:55.2]} 26. Qc7#
{[%clk 0:03:36.4]} 1-0

[Event "Live Chess"]
[Site "Chess.com"]
[Date "2023.05.21"]
[Round "-"]
[White "nigelst"]
[Black "peter-785"]
[Result "1-0"]
[WhiteElo "1721"]
[BlackElo "1219"]
[TimeControl "300"]
[EndTime "23:26:16 PDT"]
[Termination "nigelst won by resignation"]

1. e4 {[%clk 0:04:59]} 1... c5 {[%clk 0:04:58.7]} 2. Nf3 {[%clk 0:04:57.6]} 2...
d6 {[%clk 0:04:58.2]} 3. Bb5+ {[%clk 0:04:55.2]} 3... Nd7 {[%clk 0:04:56.6]} 4.
O-O {[%clk 0:04:53.4]} 4... a6 {[%clk 0:04:56]} 5. Bxd7+ {[%clk 0:04:51.9]} 5...
Bxd7 {[%clk 0:04:51.4]} 6. c3 {[%clk 0:04:50.6]} 6... e6 {[%clk 0:04:50.5]} 7.
d4 {[%clk 0:04:49.1]} 7... cxd4 {[%clk 0:04:48.6]} 8. cxd4 {[%clk 0:04:47.9]}
8... Nf6 {[%clk 0:04:40.6]} 9. Nc3 {[%clk 0:04:46]} 9... Be7 {[%clk 0:04:34.7]}
10. Bg5 {[%clk 0:04:43]} 10... O-O {[%clk 0:04:31.8]} 11. Rc1 {[%clk 0:04:38.5]}
11... b5 {[%clk 0:04:28.3]} 12. e5 {[%clk 0:04:36.9]} 12... Ne8 {[%clk
0:04:09.9]} 13. Bxe7 {[%clk 0:04:32]} 13... Qxe7 {[%clk 0:04:08.2]} 14. exd6
{[%clk 0:04:22]} 14... Qxd6 {[%clk 0:03:51.3]} 15. Ne4 {[%clk 0:04:11.5]} 15...
Qb6 {[%clk 0:03:43.6]} 16. Nc5 {[%clk 0:04:08.2]} 16... Rd8 {[%clk 0:03:26.8]}
17. Ne5 {[%clk 0:04:03.4]} 17... Nf6 {[%clk 0:03:24.3]} 18. b4 {[%clk
0:03:52.4]} 18... Bc6 {[%clk 0:03:23]} 19. Nxe6 {[%clk 0:03:30.9]} 19... Bxg2
{[%clk 0:02:57.4]} 20. Nxd8 {[%clk 0:03:16.9]} 20... Rxd8 {[%clk 0:02:33.4]} 21.
Rc6 {[%clk 0:02:51.3]} 21... Qb7 {[%clk 0:02:14.5]} 22. Kxg2 {[%clk 0:02:38.1]}
22... Nd7 {[%clk 0:02:08.7]} 23. Nxd7 {[%clk 0:02:29.7]} 23... Qxc6+ {[%clk
0:02:06.7]} 24. f3 {[%clk 0:02:25]} 24... Qxd7 {[%clk 0:02:05.5]} 25. Re1 {[%clk
0:02:12.6]} 25... h6 {[%clk 0:02:02.4]} 26. Re4 {[%clk 0:02:09.4]} 26... Qd5
{[%clk 0:01:55.6]} 27. Qe2 {[%clk 0:02:04.3]} 27... Qg5+ {[%clk 0:01:51.1]} 28.
Kh1 {[%clk 0:01:58]} 28... Rc8 {[%clk 0:01:37.3]} 29. Re8+ {[%clk 0:01:54.7]}
29... Rxe8 {[%clk 0:01:33.7]} 30. Qxe8+ {[%clk 0:01:52.7]} 30... Kh7 {[%clk
0:01:32.9]} 31. Qe4+ {[%clk 0:01:50.6]} 31... g6 {[%clk 0:01:27.3]} 32. d5
{[%clk 0:01:48.5]} 32... Qc1+ {[%clk 0:01:24.6]} 33. Kg2 {[%clk 0:01:47.1]}
33... Qd2+ {[%clk 0:01:17.6]} 34. Kg3 {[%clk 0:01:45.9]} 34... Qg5+ {[%clk
0:01:16.3]} 35. Kf2 {[%clk 0:01:38.3]} 35... Qd2+ {[%clk 0:01:15]} 36. Kf1
{[%clk 0:01:32.9]} 36... Qxh2 {[%clk 0:01:09.3]} 37. Qd3 {[%clk 0:01:22.5]}
37... Qxa2 {[%clk 0:00:50.6]} 38. d6 {[%clk 0:01:19.9]} 38... Qa1+ {[%clk
0:00:48.6]} 39. Kg2 {[%clk 0:01:18.5]} 39... Qb2+ {[%clk 0:00:46.1]} 40. Kg3
{[%clk 0:01:15.8]} 40... Qe5+ {[%clk 0:00:43.3]} 41. f4 {[%clk 0:01:14.3]} 41...
Qe8 {[%clk 0:00:41.9]} 42. d7 {[%clk 0:01:12.5]} 42... Qd8 {[%clk 0:00:40.7]}
43. Qd5 {[%clk 0:01:07.5]} 43... Kg7 {[%clk 0:00:39.4]} 44. Qe5+ {[%clk
0:01:05.3]} 44... Kg8 {[%clk 0:00:33.1]} 45. Qe8+ {[%clk 0:00:59.9]} 1-0